fUSD/lending_fUSD_20260617
["ID","MTS","AMOUNT","RATE_DAILY","PERIOD"]
[425285919,1781644246000,-1643.26,0.00024174,2]
[425285921,1781644246000,-378.55,0.00024174,2]
[425285925,1781644246000,-300.0,0.00024199,2]
[425285920,1781644246000,-42209.59,0.00024174,2]
[425285923,1781644246000,-500.0,0.00024185,2]
[425285924,1781644246000,-300.0,0.00024199,2]
[425285912,1781644246000,-362.718963,0.00024174,2]
[425285910,1781644246000,-151.0,0.00024174,2]
[425285957,1781644246000,-151.0,0.00024658,2]
[425285960,1781644246000,-151.0,0.00024658,2]
[425285992,1781644246000,-994.0,0.00025,2]
[425285991,1781644246000,-658.0,0.00025,2]
[425285993,1781644246000,-300.0,0.00025,2]
[425285995,1781644246000,-652.0,0.00025,2]
[425285996,1781644246000,-173.0,0.00025,2]
[425285999,1781644246000,-151.0,0.00025,2]
[425286008,1781644246000,-347.53,0.00025,2]
[425285998,1781644246000,-553.0,0.00025,2]
[425286007,1781644246000,-303.10129498,0.00025,2]
[425286009,1781644246000,-347.53,0.00025,2]
[425286002,1781644246000,-151.0,0.00025,2]
[425285997,1781644246000,-333438.73671337,0.00025,2]
[425286005,1781644246000,-2000.0,0.00025,7]
[425286001,1781644246000,-151.0,0.00025,2]
[425286003,1781644246000,-151.0,0.00025,2]
[425286006,1781644246000,-5528.0,0.00025,3]
[425286010,1781644246000,-347.53,0.00025,2]
[425286011,1781644246000,-347.53,0.00025,2]
[425286012,1781644246000,-347.53,0.00025,2]
[425286016,1781644246000,-347.53,0.00025,2]
[425286015,1781644246000,-347.53,0.00025,2]
[425286013,1781644246000,-347.53,0.00025,2]
[425286014,1781644246000,-347.53,0.00025,2]
[425285955,1781644246000,-575.479373,0.00024658,2]
[425286004,1781644246000,-341.86406734,0.00025,2]
[425285994,1781644246000,-197.0,0.00025,2]
[425286000,1781644246000,-151.0,0.00025,2]
[425285988,1781644246000,-233.5188934,0.00024932,2]
[425285962,1781644246000,-151.0,0.00024665,2]
[425285990,1781644246000,-233.5188934,0.00024932,2]
[425285971,1781644246000,-170.5,0.00024801,7]
[425285961,1781644246000,-151.0,0.00024658,2]
[425285964,1781644246000,-151.0,0.00024665,2]
[425285963,1781644246000,-684.52174,0.00024665,2]
[425285965,1781644246000,-684.52174,0.00024665,2]
[425285968,1781644246000,-151.0,0.00024665,2]
[425285967,1781644246000,-684.52174,0.00024665,2]
[425285966,1781644246000,-151.0,0.00024665,2]
[425285970,1781644246000,-2802.28,0.00024677,7]
[425285972,1781644246000,-714.0,0.00024892,2]
[425285975,1781644246000,-21229.86,0.00024926,7]
[425285969,1781644246000,-684.52174,0.00024665,2]
[425285987,1781644246000,-151.0,0.00024932,2]
[425285989,1781644246000,-233.5188934,0.00024932,2]
[425285978,1781644246000,-695.39793187,0.00024931,2]
[425285985,1781644246000,-209.40437684,0.00024932,2]
[425285986,1781644246000,-3610.00685391,0.00024932,2]
[425285980,1781644246000,-599.60298507,0.00024932,2]
[425285981,1781644246000,-233.5188934,0.00024932,2]
[425285983,1781644246000,-154.51081299,0.00024932,2]
[425285976,1781644246000,-209.40437684,0.0002493,2]
[425285977,1781644246000,-151.0,0.00024931,2]
[425285973,1781644246000,-500.0,0.00024911,2]
[425285979,1781644246000,-599.60298507,0.00024931,2]
[425286054,1781644247000,-251.11897888,0.00026028,2]
[425286058,1781644247000,-285.0,0.00026194,7]
[425286056,1781644247000,-251.11897888,0.00026028,2]
[425286051,1781644247000,-154.51081299,0.00026028,2]
[425286053,1781644247000,-151.0,0.00026028,2]
[425286047,1781644247000,-326.39,0.00026027,7]
[425286052,1781644247000,-225.18697532,0.00026028,2]
[425286050,1781644247000,-251.11897888,0.00026028,2]
[425286044,1781644247000,-207.49,0.00025795,2]
[425286057,1781644247000,-893.0,0.00026033,2]
[425286049,1781644247000,-542.74990657,0.00026028,2]
[425286055,1781644247000,-232.86425661,0.00026028,2]
[425286069,1781644247000,-791.0,0.000265,2]
[425286064,1781644247000,-782.720217,0.00026384,2]
[425286062,1781644247000,-217.15233878,0.00026299,2]
[425286060,1781644247000,-200.0,0.00026237,2]
[425286061,1781644247000,-2586.85809042,0.00026237,2]
[425286065,1781644247000,-782.720217,0.00026384,2]
[425286063,1781644247000,-782.720217,0.00026384,2]
[425286067,1781644247000,-500.0,0.00026428,2]
[425286070,1781644247000,-21229.86,0.00026568,7]
[425286066,1781644247000,-782.720217,0.00026384,2]
[425286076,1781644247000,-350.6171274,0.00026576,2]
[425286075,1781644247000,-260.4103811,0.00026576,2]
[425286048,1781644247000,-190.01,0.00026027,7]
[425286059,1781644247000,-151.0,0.00026237,2]
[425286046,1781644247000,-27490.47687194,0.00026,10]
[425286018,1781644247000,-206.0,0.00025073,2]
[425286037,1781644247000,-2494.55939288,0.00025689,2]
[425286068,1781644247000,-310.0,0.000265,2]
[425286019,1781644247000,-151.0,0.00025141,2]
[425286021,1781644247000,-2405.55389863,0.00025141,2]
[425286017,1781644247000,-347.53,0.00025,2]
[425286020,1781644247000,-200.0,0.00025141,2]
[425286022,1781644247000,-1627.47,0.000252,7]
[425286023,1781644247000,-1228.039,0.00025257,2]
[425286027,1781644247000,-242.15909246,0.0002548,2]
[425286024,1781644247000,-1749.519,0.00025257,2]
[425286025,1781644247000,-6078.0,0.00025257,2]
[425286031,1781644247000,-242.15909246,0.0002548,2]
[425286028,1781644247000,-154.51081299,0.0002548,2]
[425286032,1781644247000,-242.15909246,0.0002548,2]
[425286029,1781644247000,-217.15233878,0.0002548,2]
[425286030,1781644247000,-151.0,0.0002548,2]
[425286034,1781644247000,-500.0,0.00025658,2]
[425286033,1781644247000,-242.15909246,0.0002548,2]
[425286040,1781644247000,-1643.26,0.00025786,2]
[425286043,1781644247000,-2128.94,0.00025786,2]
[425286036,1781644247000,-200.0,0.00025689,2]
[425286035,1781644247000,-151.0,0.00025689,2]
[425286042,1781644247000,-378.55,0.00025786,2]
[425286038,1781644247000,-609.0,0.00025774,10]
[425286041,1781644247000,-42209.59,0.00025786,2]
[425286039,1781644247000,-923.86,0.00025786,2]
[425286045,1781644247000,-5528.0,0.000258,5]
[425286072,1781644247000,-154.51081299,0.00026576,2]
[425286026,1781644247000,-621.78829552,0.0002548,2]
[425286073,1781644247000,-233.5188934,0.00026576,2]
[425286106,1781644247000,-189.30606322,0.00027068,7]
[425286107,1781644247000,-195.92293758,0.00027068,7]
[425286104,1781644247000,-189.55056626,0.00027068,7]
[425286108,1781644247000,-160.26915097,0.00027068,7]
[425286112,1781644247000,-180.12443623,0.00027068,7]
[425286111,1781644247000,-211.12323692,0.00027068,7]
[425286109,1781644247000,-194.55632952,0.00027068,7]
[425286114,1781644247000,-193.01167118,0.00027068,7]
[425286110,1781644247000,-170.52462909,0.00027068,7]
[425286116,1781644247000,-307.32373026,0.00027124,2]
[425286115,1781644247000,-162.61127238,0.00027068,5]
[425286122,1781644247000,-191.38030484,0.0002713,7]
[425286121,1781644247000,-189.97214289,0.0002713,7]
[425286118,1781644247000,-242.15909246,0.00027124,2]
[425286119,1781644247000,-151.0,0.00027124,2]
[425286130,1781644247000,-893.0,0.00027175,5]
[425286117,1781644247000,-154.51081299,0.00027124,2]
[425286120,1781644247000,-270.0455652,0.00027124,2]
[425286124,1781644247000,-151.96264207,0.0002713,7]
[425286125,1781644247000,-150.98697652,0.0002713,7]
[425286123,1781644247000,-165.645538,0.0002713,7]
[425286126,1781644247000,-194.94333339,0.0002713,7]
[425286128,1781644247000,-205.25204961,0.0002713,7]
[425286129,1781644247000,-590.0,0.00027137,2]
[425286127,1781644247000,-184.7497939,0.0002713,7]
[425286102,1781644247000,-174.91177435,0.00027068,7]
[425286105,1781644247000,-166.58605366,0.00027068,7]
[425286071,1781644247000,-260.4103811,0.00026576,2]
[425286103,1781644247000,-153.78070875,0.00027068,7]
[425286074,1781644247000,-151.0,0.00026576,2]
[425286077,1781644247000,-288.396368,0.00026673,7]
[425286082,1781644247000,-250.0,0.00026942,2]
[425286081,1781644247000,-154.078,0.00026942,2]
[425286078,1781644247000,-151.0,0.00026785,2]
[425286079,1781644247000,-200.0,0.00026785,2]
[425286086,1781644247000,-157.69627635,0.00027065,7]
[425286113,1781644247000,-159.96275635,0.00027068,7]
[425286080,1781644247000,-2682.57183977,0.00026785,2]
[425286083,1781644247000,-250.0,0.00026942,2]
[425286087,1781644247000,-178.90458114,0.00027065,7]
[425286088,1781644247000,-194.85348036,0.00027065,7]
[425286084,1781644247000,-152.0,0.00027031,30]
[425286085,1781644247000,-154.86830088,0.00027065,7]
[425286090,1781644247000,-184.18350542,0.00027065,7]
[425286100,1781644247000,-159.7390757,0.00027068,7]
[425286101,1781644247000,-184.23578461,0.00027068,7]
[425286095,1781644247000,-159.17085174,0.00027065,7]
[425286099,1781644247000,-182.33654181,0.00027068,7]
[425286097,1781644247000,-182.84438982,0.00027065,7]
[425286098,1781644247000,-165.12830904,0.00027068,2]
[425286094,1781644247000,-209.81153343,0.00027065,7]
[425286093,1781644247000,-196.73607187,0.00027065,7]
[425286092,1781644247000,-162.95240884,0.00027065,7]
[425286091,1781644247000,-175.32243617,0.00027065,7]
[425286089,1781644247000,-197.60153113,0.00027065,7]
[425286096,1781644247000,-165.98059186,0.00027065,7]
[425286173,1781644248000,-864.92,0.00027397,2]
[425286166,1781644248000,-864.92,0.00027397,2]
[425286165,1781644248000,-864.92,0.00027397,2]
[425286162,1781644248000,-864.92,0.00027397,2]
[425286164,1781644248000,-864.92,0.00027397,2]
[425286156,1781644248000,-500.0,0.00027397,2]
[425286172,1781644248000,-864.92,0.00027397,2]
[425286171,1781644248000,-864.92,0.00027397,2]
[425286163,1781644248000,-864.92,0.00027397,2]
[425286160,1781644248000,-864.92,0.00027397,2]
[425286168,1781644248000,-864.92,0.00027397,2]
[425286170,1781644248000,-864.92,0.00027397,2]
[425286185,1781644248000,-300.0,0.00027397,2]
[425286167,1781644248000,-864.92,0.00027397,2]
[425286174,1781644248000,-864.92,0.00027397,2]
[425286175,1781644248000,-864.92,0.00027397,2]
[425286176,1781644248000,-864.92,0.00027397,2]
[425286177,1781644248000,-864.92,0.00027397,2]
[425286182,1781644248000,-865.03153067,0.00027397,2]
[425286183,1781644248000,-198.50655612,0.00027397,2]
[425286179,1781644248000,-864.92,0.00027397,2]
[425286178,1781644248000,-864.92,0.00027397,2]
[425286180,1781644248000,-864.92,0.00027397,2]
[425286181,1781644248000,-864.92,0.00027397,2]
[425286159,1781644248000,-864.92,0.00027397,2]
[425286169,1781644248000,-864.92,0.00027397,2]
[425286161,1781644248000,-864.92,0.00027397,2]
[425286143,1781644248000,-300.0,0.00027396,10]
[425286154,1781644248000,-605.65135585,0.00027397,2]
[425286184,1781644248000,-500.0,0.00027397,2]
[425286135,1781644248000,-1627.47,0.000273,7]
[425286136,1781644248000,-151.0,0.00027333,2]
[425286133,1781644248000,-323.0,0.00027281,5]
[425286132,1781644248000,-500.0,0.00027221,2]
[425286134,1781644248000,-515.0,0.00027281,5]
[425286131,1781644248000,-184.29452981,0.0002722,2]
[425286148,1781644248000,-500.0,0.00027397,2]
[425286138,1781644248000,-2781.82699784,0.00027333,2]
[425286137,1781644248000,-200.0,0.00027333,2]
[425286140,1781644248000,-2802.28,0.00027354,7]
[425286139,1781644248000,-167.4519852,0.00027339,2]
[425286141,1781644248000,-394.0,0.00027365,7]
[425286147,1781644248000,-500.28796441,0.00027397,2]
[425286142,1781644248000,-4533.68641657,0.0002739,7]
[425286146,1781644248000,-300.0,0.00027396,10]
[425286144,1781644248000,-300.0,0.00027396,10]
[425286145,1781644248000,-300.0,0.00027396,10]
[425286149,1781644248000,-500.0,0.00027397,2]
[425286151,1781644248000,-500.0,0.00027397,2]
[425286152,1781644248000,-500.0,0.00027397,2]
[425286153,1781644248000,-490.8325641,0.00027397,2]
[425286150,1781644248000,-500.0,0.00027397,2]
[425286155,1781644248000,-500.0,0.00027397,2]
[425286158,1781644248000,-353.76355088,0.00027397,2]
[425286157,1781644248000,-500.0,0.00027397,2]
[425286186,1781644248000,-300.0,0.00027397,2]
[425286189,1781644248000,-300.0,0.00027397,2]
[425286245,1781644248000,-1000.0,0.00027397,2]
[425286219,1781644248000,-1000.0,0.00027397,2]
[425286221,1781644248000,-1000.0,0.00027397,2]
[425286220,1781644248000,-1000.0,0.00027397,2]
[425286226,1781644248000,-1000.0,0.00027397,2]
[425286225,1781644248000,-1000.0,0.00027397,2]
[425286227,1781644248000,-1000.0,0.00027397,2]
[425286230,1781644248000,-1000.0,0.00027397,2]
[425286228,1781644248000,-1000.0,0.00027397,2]
[425286229,1781644248000,-1000.0,0.00027397,2]
[425286231,1781644248000,-1000.0,0.00027397,2]
[425286223,1781644248000,-1000.0,0.00027397,2]
[425286224,1781644248000,-1000.0,0.00027397,2]
[425286218,1781644248000,-1000.0,0.00027397,2]
[425286239,1781644248000,-1000.0,0.00027397,2]
[425286240,1781644248000,-1000.0,0.00027397,2]
[425286233,1781644248000,-1000.0,0.00027397,2]
[425286241,1781644248000,-1000.0,0.00027397,2]
[425286234,1781644248000,-1000.0,0.00027397,2]
[425286238,1781644248000,-1000.0,0.00027397,2]
[425286237,1781644248000,-1000.0,0.00027397,2]
[425286236,1781644248000,-1000.0,0.00027397,2]
[425286235,1781644248000,-1000.0,0.00027397,2]
[425286243,1781644248000,-1000.0,0.00027397,2]
[425286242,1781644248000,-1000.0,0.00027397,2]
[425286244,1781644248000,-1000.0,0.00027397,2]
[425286188,1781644248000,-300.0,0.00027397,2]
[425286232,1781644248000,-1000.0,0.00027397,2]
[425286210,1781644248000,-1000.0,0.00027397,2]
[425286222,1781644248000,-1000.0,0.00027397,2]
[425286215,1781644248000,-1000.0,0.00027397,2]
[425286211,1781644248000,-1000.0,0.00027397,2]
[425286190,1781644248000,-300.0,0.00027397,2]
[425286191,1781644248000,-300.0,0.00027397,2]
[425286193,1781644248000,-175.65698095,0.00027397,2]
[425286194,1781644248000,-428.2386209,0.00027397,2]
[425286192,1781644248000,-300.0,0.00027397,2]
[425286196,1781644248000,-500.0,0.00027397,15]
[425286195,1781644248000,-500.0,0.00027397,15]
[425286197,1781644248000,-500.0,0.00027397,15]
[425286199,1781644248000,-500.0,0.00027397,15]
[425286208,1781644248000,-1000.0,0.00027397,2]
[425286209,1781644248000,-1000.0,0.00027397,2]
[425286200,1781644248000,-502.58377949,0.00027397,15]
[425286187,1781644248000,-300.0,0.00027397,2]
[425286198,1781644248000,-500.0,0.00027397,15]
[425286202,1781644248000,-1000.0,0.00027397,2]
[425286214,1781644248000,-1000.0,0.00027397,2]
[425286212,1781644248000,-1000.0,0.00027397,2]
[425286213,1781644248000,-1000.0,0.00027397,2]
[425286217,1781644248000,-1000.0,0.00027397,2]
[425286206,1781644248000,-1000.0,0.00027397,2]
[425286216,1781644248000,-1000.0,0.00027397,2]
[425286207,1781644248000,-1000.0,0.00027397,2]
[425286203,1781644248000,-1000.0,0.00027397,2]
[425286201,1781644248000,-1000.0,0.00027397,2]
[425286204,1781644248000,-1000.0,0.00027397,2]
[425286205,1781644248000,-1000.0,0.00027397,2]
[425286284,1781644249000,-1000.0,0.00027397,2]
[425286285,1781644249000,-1000.0,0.00027397,2]
[425286282,1781644249000,-1000.0,0.00027397,2]
[425286273,1781644249000,-1000.0,0.00027397,2]
[425286286,1781644249000,-1000.0,0.00027397,2]
[425286277,1781644249000,-1000.0,0.00027397,2]
[425286281,1781644249000,-1000.0,0.00027397,2]
[425286280,1781644249000,-1000.0,0.00027397,2]
[425286279,1781644249000,-1000.0,0.00027397,2]
[425286278,1781644249000,-1000.0,0.00027397,2]
[425286287,1781644249000,-1000.0,0.00027397,2]
[425286283,1781644249000,-1000.0,0.00027397,2]
[425286289,1781644249000,-1000.0,0.00027397,2]
[425286300,1781644249000,-1000.0,0.00027397,2]
[425286290,1781644249000,-1000.0,0.00027397,2]
[425286292,1781644249000,-1000.0,0.00027397,2]
[425286295,1781644249000,-1000.0,0.00027397,2]
[425286293,1781644249000,-1000.0,0.00027397,2]
[425286294,1781644249000,-1000.0,0.00027397,2]
[425286298,1781644249000,-1000.0,0.00027397,2]
[425286299,1781644249000,-7004.2,0.00027397,2]
[425286291,1781644249000,-1000.0,0.00027397,2]
[425286301,1781644249000,-1000.0,0.00027397,2]
[425286296,1781644249000,-1000.0,0.00027397,2]
[425286302,1781644249000,-1500.0,0.00027397,2]
[425286269,1781644249000,-1000.0,0.00027397,2]
[425286288,1781644249000,-1000.0,0.00027397,2]
[425286271,1781644249000,-1000.0,0.00027397,2]
[425286306,1781644249000,-876.603178,0.00027397,2]
[425286274,1781644249000,-1000.0,0.00027397,2]
[425286246,1781644249000,-1000.0,0.00027397,2]
[425286250,1781644249000,-1000.0,0.00027397,2]
[425286248,1781644249000,-1000.0,0.00027397,2]
[425286252,1781644249000,-1000.0,0.00027397,2]
[425286251,1781644249000,-1000.0,0.00027397,2]
[425286249,1781644249000,-1000.0,0.00027397,2]
[425286247,1781644249000,-1000.0,0.00027397,2]
[425286253,1781644249000,-1000.0,0.00027397,2]
[425286254,1781644249000,-1000.0,0.00027397,2]
[425286255,1781644249000,-1000.0,0.00027397,2]
[425286263,1781644249000,-1000.0,0.00027397,2]
[425286262,1781644249000,-1000.0,0.00027397,2]
[425286270,1781644249000,-1000.0,0.00027397,2]
[425286257,1781644249000,-1000.0,0.00027397,2]
[425286258,1781644249000,-1000.0,0.00027397,2]
[425286264,1781644249000,-1000.0,0.00027397,2]
[425286260,1781644249000,-1000.0,0.00027397,2]
[425286256,1781644249000,-1000.0,0.00027397,2]
[425286261,1781644249000,-1000.0,0.00027397,2]
[425286265,1781644249000,-1000.0,0.00027397,2]
[425286275,1781644249000,-1000.0,0.00027397,2]
[425286268,1781644249000,-1000.0,0.00027397,2]
[425286276,1781644249000,-1000.0,0.00027397,2]
[425286267,1781644249000,-1000.0,0.00027397,2]
[425286266,1781644249000,-1000.0,0.00027397,2]
[425286272,1781644249000,-1000.0,0.00027397,2]
[425286259,1781644249000,-1000.0,0.00027397,2]
[425286305,1781644249000,-876.603178,0.00027397,2]
[425286297,1781644249000,-1000.0,0.00027397,2]
[425286312,1781644249000,-1000.0,0.00027397,20]
[425286332,1781644249000,-500.0,0.00027578,2]
[425286338,1781644249000,-500.0,0.00027578,2]
[425286339,1781644249000,-500.0,0.00027578,2]
[425286350,1781644249000,-186.29357045,0.00027852,14]
[425286340,1781644249000,-363.9514673,0.00027578,2]
[425286342,1781644249000,-721.12765534,0.0002767,2]
[425286341,1781644249000,-151.0,0.0002767,2]
[425286349,1781644249000,-1111.90834699,0.00027746,3]
[425286346,1781644249000,-251.11897888,0.00027672,2]
[425286347,1781644249000,-151.0,0.00027672,2]
[425286343,1781644249000,-621.78829552,0.0002767,2]
[425286348,1781644249000,-280.03725111,0.00027672,2]
[425286344,1781644249000,-590.0,0.00027671,2]
[425286345,1781644249000,-154.51081299,0.00027672,2]
[425286362,1781644249000,-643.0,0.00028,2]
[425286352,1781644249000,-200.0,0.00027881,2]
[425286357,1781644249000,-300.0,0.00027999,10]
[425286356,1781644249000,-300.0,0.00027999,10]
[425286361,1781644249000,-8763.40173482,0.00028,2]
[425286359,1781644249000,-50147.90079155,0.00028,2]
[425286351,1781644249000,-153.33214767,0.00027881,2]
[425286353,1781644249000,-2884.75459676,0.00027881,2]
[425286360,1781644249000,-625.45901985,0.00028,60]
[425286355,1781644249000,-168.32,0.00027978,8]
[425286358,1781644249000,-300.0,0.00027999,10]
[425286364,1781644249000,-156.55526826,0.00028,2]
[425286307,1781644249000,-876.603178,0.00027397,2]
[425286331,1781644249000,-500.0,0.00027578,2]
[425286330,1781644249000,-500.0,0.000275,7]
[425286354,1781644249000,-5984.63,0.000279,2]
[425286333,1781644249000,-500.0,0.00027578,2]
[425286329,1781644249000,-152.0,0.00027437,3]
[425286303,1781644249000,-552.30395837,0.00027397,2]
[425286311,1781644249000,-449.98,0.00027397,2]
[425286363,1781644249000,-1728.51,0.00028,7]
[425286308,1781644249000,-876.603178,0.00027397,2]
[425286310,1781644249000,-254.13826,0.00027397,2]
[425286309,1781644249000,-151.0,0.00027397,2]
[425286314,1781644249000,-1275.729008,0.00027397,2]
[425286313,1781644249000,-1275.729008,0.00027397,2]
[425286323,1781644249000,-300.0,0.00027397,2]
[425286315,1781644249000,-1275.729008,0.00027397,2]
[425286316,1781644249000,-1275.729008,0.00027397,2]
[425286324,1781644249000,-31010.66,0.00027397,10]
[425286304,1781644249000,-151.0,0.00027397,2]
[425286317,1781644249000,-399.656603,0.00027397,2]
[425286327,1781644249000,-1001.15965791,0.000274,7]
[425286335,1781644249000,-500.0,0.00027578,2]
[425286325,1781644249000,-185.74064842,0.00027397,7]
[425286336,1781644249000,-162.78781042,0.00027578,2]
[425286320,1781644249000,-399.656603,0.00027397,2]
[425286328,1781644249000,-1728.51,0.000274,7]
[425286337,1781644249000,-500.0,0.00027578,2]
[425286334,1781644249000,-500.0,0.00027578,2]
[425286322,1781644249000,-151.0,0.00027397,2]
[425286319,1781644249000,-399.656603,0.00027397,2]
[425286318,1781644249000,-399.656603,0.00027397,2]
[425286321,1781644249000,-151.0,0.00027397,2]
[425286326,1781644249000,-2484.87,0.000274,7]
[425286397,1781644250000,-368.47156921,0.0002835,7]
[425286405,1781644250000,-378.61212644,0.0002835,7]
[425286406,1781644250000,-391.84587516,0.0002835,7]
[425286402,1781644250000,-307.5614175,0.0002835,7]
[425286395,1781644250000,-228.27393888,0.0002835,7]
[425286404,1781644250000,-333.17210732,0.0002835,7]
[425286398,1781644250000,-246.2527603,0.0002835,7]
[425286396,1781644250000,-319.4781514,0.0002835,7]
[425286399,1781644250000,-349.82354869,0.0002835,7]
[425286403,1781644250000,-173.82283146,0.0002835,7]
[425286400,1781644250000,-194.60308353,0.0002835,7]
[425286417,1781644250000,-319.9255127,0.0002835,7]
[425286407,1781644250000,-226.81997709,0.0002835,7]
[425286418,1781644250000,-180.0571174,0.0002835,7]
[425286409,1781644250000,-188.95727174,0.0002835,7]
[425286408,1781644250000,-320.53830195,0.0002835,7]
[425286412,1781644250000,-389.11265905,0.0002835,7]
[425286410,1781644250000,-249.16563065,0.0002835,7]
[425286411,1781644250000,-186.5279999,0.0002835,5]
[425286413,1781644250000,-341.04925819,0.0002835,7]
[425286414,1781644250000,-422.24647384,0.0002835,7]
[425286415,1781644250000,-360.24887245,0.0002835,7]
[425286416,1781644250000,-154.86262301,0.0002835,7]
[425286394,1781644250000,-364.67308362,0.0002835,7]
[425286401,1781644250000,-379.10113251,0.0002835,7]
[425286392,1781644250000,-232.98993049,0.0002835,7]
[425286379,1781644250000,-350.64487235,0.00028347,7]
[425286390,1781644250000,-237.60585871,0.0002835,7]
[425286422,1781644250000,-250.0,0.00028363,11]
[425286367,1781644250000,-21229.86,0.0002821,7]
[425286365,1781644250000,-500.0,0.00028037,15]
[425286366,1781644250000,-590.0,0.00028205,3]
[425286371,1781644250000,-290.3986294,0.0002822,2]
[425286370,1781644250000,-151.0,0.0002822,2]
[425286373,1781644250000,-309.73660177,0.00028347,7]
[425286368,1781644250000,-154.51081315,0.0002822,2]
[425286372,1781644250000,-6078.0,0.00028257,2]
[425286369,1781644250000,-260.4103811,0.0002822,2]
[425286375,1781644250000,-357.80916228,0.00028347,7]
[425286374,1781644250000,-315.39255271,0.00028347,7]
[425286393,1781644250000,-179.37730757,0.0002835,2]
[425286377,1781644250000,-395.20306225,0.00028347,7]
[425286376,1781644250000,-389.70696071,0.00028347,7]
[425286378,1781644250000,-368.36701084,0.00028347,7]
[425286384,1781644250000,-371.48129683,0.00028347,7]
[425286382,1781644250000,-419.62306687,0.00028347,7]
[425286381,1781644250000,-393.47214374,0.00028347,7]
[425286383,1781644250000,-194.7653813,0.00028347,7]
[425286386,1781644250000,-331.96118372,0.00028347,7]
[425286385,1781644250000,-318.34170349,0.00028347,7]
[425286387,1781644250000,-244.39051253,0.00028347,7]
[425286391,1781644250000,-174.04359985,0.0002835,7]
[425286389,1781644250000,-330.25661808,0.0002835,2]
[425286388,1781644250000,-365.68877964,0.00028347,7]
[425286380,1781644250000,-325.90481767,0.00028347,7]
[425286421,1781644250000,-250.0,0.00028363,11]
[425286419,1781644250000,-325.22254477,0.0002835,5]
[425286423,1781644250000,-379.94428579,0.00028414,7]
[425286454,1781644250000,-590.0,0.00028739,3]
[425286452,1781644250000,-604.72,0.00028717,7]
[425286450,1781644250000,-606.08,0.00028694,2]
[425286457,1781644250000,-552.30395837,0.00028766,2]
[425286458,1781644250000,-500.0,0.00028767,2]
[425286459,1781644250000,-218.41127639,0.00028767,2]
[425286462,1781644250000,-301.14337869,0.00028768,2]
[425286461,1781644250000,-151.0,0.00028768,2]
[425286464,1781644250000,-606.08,0.00028779,2]
[425286463,1781644250000,-604.72,0.00028774,2]
[425286465,1781644250000,-1728.51,0.000288,7]
[425286466,1781644250000,-604.72,0.00028803,7]
[425286449,1781644250000,-604.72,0.00028689,2]
[425286467,1781644250000,-606.08,0.00028807,7]
[425286470,1781644250000,-2473.96,0.00028816,7]
[425286468,1781644250000,-200.0,0.00028816,2]
[425286471,1781644250000,-4635.8,0.00028816,7]
[425286472,1781644250000,-2421.0,0.00028816,7]
[425286478,1781644250000,-193.87127905,0.00028849,2]
[425286474,1781644250000,-4592.74,0.00028818,7]
[425286473,1781644250000,-2456.66,0.00028817,7]
[425286476,1781644250000,-606.08,0.00028835,30]
[425286477,1781644250000,-193.87127905,0.00028849,2]
[425286475,1781644250000,-604.72,0.00028832,30]
[425286479,1781644250000,-604.72,0.0002886,2]
[425286424,1781644250000,-382.76060968,0.00028414,7]
[425286469,1781644250000,-2474.78,0.00028816,7]
[425286451,1781644250000,-2484.87,0.000287,7]
[425286460,1781644250000,-270.0455652,0.00028768,2]
[425286447,1781644250000,-2456.66,0.00028653,30]